fUSD/lending_fUSD_20250211
["ID","MTS","AMOUNT","RATE_DAILY","PERIOD"]
[352752577,1739292642546,-500.0,0.00016438,2]
[352752578,1739292642556,-500.0,0.00016438,2]
[352752579,1739292642567,-500.0,0.00016438,2]
[352752580,1739292642577,-500.0,0.00016438,2]
[352752581,1739292642588,-500.0,0.00016438,2]
[352752582,1739292642598,-2633.29,0.00016438,2]
[352752583,1739292642608,-500.0,0.00016438,2]
[352752584,1739292642618,-608.46,0.00016438,2]
[352752585,1739292642628,-500.0,0.00016438,2]
[352752586,1739292642637,-500.0,0.00016438,2]
[352752587,1739292642647,-500.0,0.00016438,2]
[352752588,1739292642657,-500.0,0.00016438,2]
[352752589,1739292642667,-500.0,0.00016438,2]
[352752590,1739292642677,-562.42,0.00016438,2]
[352752591,1739292642687,-506.21709792,0.00016438,2]
[352752592,1739292642697,-702.19,0.00016438,2]
[352752593,1739292642707,-500.0,0.00016438,2]
[352752594,1739292642716,-500.0,0.00016438,2]
[352752595,1739292642726,-500.0,0.00016438,2]
[352752596,1739292642738,-500.0,0.00016438,2]
[352752597,1739292642748,-603.78,0.00016438,2]
[352752598,1739292642757,-500.0,0.00016438,2]
[352752599,1739292642767,-500.0,0.00016438,2]
[352752600,1739292642777,-500.0,0.00016438,2]
[352752601,1739292642787,-500.0,0.00016438,2]
[352752602,1739292642797,-500.0,0.00016438,2]
[352752603,1739292642806,-500.0,0.00016438,2]
[352752604,1739292642816,-500.0,0.00016438,2]
[352752605,1739292642825,-500.0,0.00016438,2]
[352752606,1739292642834,-500.0,0.00016438,2]
[352752607,1739292642844,-521.19,0.00016438,2]
[352752608,1739292642855,-500.0,0.00016438,2]
[352752609,1739292642866,-1362.81,0.00016438,2]
[352752610,1739292642876,-500.0,0.00016438,2]
[352752611,1739292642886,-500.0,0.00016438,2]
[352752612,1739292642895,-500.0,0.00016438,2]
[352752613,1739292642906,-557.52,0.00016438,2]
[352752614,1739292642916,-1147.2,0.00016438,2]
[352752615,1739292642926,-500.0,0.00016438,2]
[352752616,1739292642935,-500.0,0.00016438,2]
[352752617,1739292642946,-500.0,0.00016438,2]
[352752618,1739292642956,-500.0,0.00016438,2]
[352752619,1739292642966,-500.0,0.00016438,2]
[352752620,1739292642975,-287.72211771,0.00016438,2]
[352752621,1739292642988,-681.22,0.00016438,2]
[352752622,1739292642999,-500.0,0.00016438,2]
[352752623,1739292643008,-500.0,0.00016438,2]
[352752624,1739292643019,-384.07164891,0.00016438,2]
[352752625,1739292643030,-492.33897128,0.00016438,2]
[352752626,1739292643039,-765.29,0.00016438,2]
[352752627,1739292643050,-500.0,0.00016438,2]
[352752628,1739292643060,-500.0,0.00016438,2]
[352752629,1739292643070,-500.0,0.00016438,2]
[352752630,1739292643080,-500.0,0.00016438,2]
[352752632,1739292643089,-500.0,0.00016438,2]
[352752634,1739292643099,-500.0,0.00016438,2]
[352752636,1739292643109,-500.0,0.00016438,2]
[352752638,1739292643119,-500.0,0.00016438,2]
[352752640,1739292643128,-500.0,0.00016438,2]
[352752643,1739292643140,-500.0,0.00016438,2]
[352752646,1739292643152,-500.0,0.00016438,2]
[352752650,1739292643162,-500.0,0.00016438,2]
[352752654,1739292643172,-500.0,0.00016438,2]
[352752656,1739292643181,-500.0,0.00016438,2]
[352752657,1739292643191,-500.0,0.00016438,2]
[352752659,1739292643200,-500.0,0.00016438,2]
[352752661,1739292643210,-500.0,0.00016438,2]
[352752663,1739292643221,-153.4736478,0.00016438,2]
[352752665,1739292643231,-500.0,0.00016438,2]
[352752667,1739292643242,-500.0,0.00016438,2]
[352752669,1739292643252,-659.27,0.00016438,2]
[352752671,1739292643261,-500.0,0.00016438,2]
[352752673,1739292643271,-500.0,0.00016438,2]
[352752676,1739292643282,-500.0,0.00016438,2]
[352752679,1739292643291,-500.0,0.00016438,2]
[352752681,1739292643301,-500.0,0.00016438,2]
[352752683,1739292643312,-500.0,0.00016438,2]
[352752685,1739292643322,-500.0,0.00016438,2]
[352752687,1739292643332,-500.0,0.00016438,2]
[352752689,1739292643342,-500.0,0.00016438,2]
[352752691,1739292643352,-500.0,0.00016438,2]
[352752693,1739292643362,-500.0,0.00016438,2]
[352752695,1739292643372,-571.46,0.00016438,2]
[352752697,1739292643382,-500.0,0.00016438,2]
[352752699,1739292643392,-340.91760276,0.00016438,2]
[352752701,1739292643401,-500.0,0.00016438,2]
[352752703,1739292643411,-500.0,0.00016438,2]
[352752705,1739292643421,-500.0,0.00016438,2]
[352752707,1739292643431,-500.0,0.00016438,2]
[352752709,1739292643441,-567.07,0.00016438,2]
[352752711,1739292643451,-500.0,0.00016438,2]
[352752713,1739292643461,-500.0,0.00016438,2]
[352752716,1739292643472,-500.0,0.00016438,2]
[352752718,1739292643482,-500.0,0.00016438,2]
[352752719,1739292643492,-500.0,0.00016438,2]
[352752722,1739292643502,-1328.94,0.00016438,2]
[352752724,1739292643512,-500.0,0.00016438,2]
[352752726,1739292643522,-702.14,0.00016438,2]
[352752727,1739292643532,-500.0,0.00016438,2]
[352752729,1739292643542,-500.0,0.00016438,2]
[352752731,1739292643551,-500.0,0.00016438,2]
[352752733,1739292643560,-500.0,0.00016438,2]
[352752734,1739292643570,-500.0,0.00016438,2]
[352752735,1739292643579,-500.0,0.00016438,2]
[352752736,1739292643587,-653.21,0.00016438,2]
[352752737,1739292643597,-500.0,0.00016438,2]
[352752738,1739292643606,-500.0,0.00016438,2]
[352752740,1739292643616,-500.0,0.00016438,2]
[352752742,1739292643625,-500.0,0.00016438,2]
[352752744,1739292643634,-500.0,0.00016438,2]
[352752745,1739292643644,-500.0,0.00016438,2]
[352752746,1739292643653,-500.0,0.00016438,2]
[352752747,1739292643663,-500.0,0.00016438,2]
[352752748,1739292643672,-505.62,0.00016438,2]
[352752749,1739292643683,-781.92,0.00016438,2]
[352752750,1739292643692,-517.04,0.00016438,2]
[352752751,1739292643702,-500.0,0.00016438,2]
[352752752,1739292643712,-500.0,0.00016438,2]
[352752754,1739292643722,-500.0,0.00016438,2]
[352752756,1739292643732,-500.0,0.00016438,2]
[352752757,1739292643742,-500.0,0.00016438,2]
[352752758,1739292643752,-500.0,0.00016438,2]
[352752759,1739292643761,-500.0,0.00016438,2]
[352752760,1739292643771,-500.0,0.00016438,2]
[352752761,1739292643781,-768.57,0.00016438,2]
[352752762,1739292643791,-500.0,0.00016438,2]
[352752763,1739292643801,-500.0,0.00016438,2]
[352752764,1739292643811,-501.61710069,0.00016438,2]
[352752765,1739292643820,-733.07,0.00016438,2]
[352752766,1739292643830,-500.0,0.00016438,2]
[352752767,1739292643839,-500.0,0.00016438,2]
[352752768,1739292643848,-634.3283745,0.00016438,2]
[352752769,1739292643858,-500.0,0.00016438,2]
[352752771,1739292643871,-500.0,0.00016438,2]
[352752772,1739292643880,-500.0,0.00016438,2]
[352752774,1739292643889,-607.06,0.00016438,2]
[352752775,1739292643899,-708.15,0.00016438,2]
[352752776,1739292643908,-500.0,0.00016438,2]
[352752777,1739292643917,-1118.08,0.00016438,2]
[352752778,1739292643927,-402.18011074,0.00016438,2]
[352752779,1739292643937,-500.0,0.00016438,2]
[352752780,1739292643946,-500.0,0.00016438,2]
[352752781,1739292643956,-500.0,0.00016438,2]
[352752782,1739292643965,-500.0,0.00016438,2]
[352752783,1739292643974,-500.0,0.00016438,2]
[352752784,1739292643984,-1638.68,0.00016438,2]
[352752786,1739292643994,-500.0,0.00016438,2]
[352752787,1739292644009,-500.0,0.00016438,2]
[352752788,1739292644023,-972.23,0.00016438,2]
[352752789,1739292644033,-500.0,0.00016438,2]
[352752790,1739292644043,-500.0,0.00016438,2]
[352752791,1739292644052,-500.0,0.00016438,2]
[352752792,1739292644062,-1025.95,0.00016438,2]
[352752793,1739292644071,-500.0,0.00016438,2]
[352752794,1739292644081,-849.42,0.00016438,2]
[352752795,1739292644091,-500.0,0.00016438,2]
[352752796,1739292644100,-589.34,0.00016438,2]
[352752797,1739292644110,-500.0,0.00016438,2]
[352752798,1739292644119,-500.0,0.00016438,2]
[352752799,1739292644128,-623.19,0.00016438,2]
[352752800,1739292644138,-949.12,0.00016438,2]
[352752801,1739292644148,-500.0,0.00016438,2]
[352752802,1739292644157,-774.19,0.00016438,2]
[352752803,1739292644167,-592.84,0.00016438,2]
[352752804,1739292644176,-500.0,0.00016438,2]
[352752805,1739292644185,-897.44,0.00016438,2]
[352752806,1739292644194,-500.0,0.00016438,2]
[352752807,1739292644204,-500.0,0.00016438,2]
[352752808,1739292644214,-500.0,0.00016438,2]
[352752809,1739292644223,-500.0,0.00016438,2]
[352752810,1739292644233,-1236.71,0.00016438,2]
[352752811,1739292644243,-500.0,0.00016438,2]
[352752812,1739292644253,-1146.12,0.00016438,2]
[352752813,1739292644263,-500.0,0.00016438,2]
[352752814,1739292644273,-877.02,0.00016438,2]
[352752815,1739292644283,-500.0,0.00016438,2]
[352752816,1739292644292,-500.0,0.00016438,2]
[352752817,1739292644302,-500.0,0.00016438,2]
[352752818,1739292644311,-500.0,0.00016438,2]
[352752819,1739292644321,-636.96,0.00016438,2]
[352752820,1739292644330,-500.0,0.00016438,2]
[352752821,1739292644340,-500.0,0.00016438,2]
[352752822,1739292644349,-1026.57,0.00016438,2]
[352752823,1739292644358,-851.21,0.00016438,2]
[352752824,1739292644367,-500.0,0.00016438,2]
[352752825,1739292644377,-1722.06,0.00016438,2]
[352752826,1739292644386,-755.82,0.00016438,2]
[352752827,1739292644396,-500.0,0.00016438,2]
[352752828,1739292644405,-500.0,0.00016438,2]
[352752829,1739292644414,-500.0,0.00016438,2]
[352752830,1739292644424,-500.0,0.00016438,2]
[352752831,1739292644492,-500.0,0.00016438,2]
[352752832,1739292644501,-1007.91,0.00016438,2]
[352752833,1739292644510,-1556.32,0.00016438,2]
[352752834,1739292644519,-743.69,0.00016438,2]
[352752835,1739292644529,-500.0,0.00016438,2]
[352752836,1739292644538,-500.0,0.00016438,2]
[352752837,1739292644547,-787.8,0.00016438,2]
[352752838,1739292644557,-500.0,0.00016438,2]
[352752839,1739292644567,-775.23,0.00016438,2]
[352752840,1739292644576,-500.0,0.00016438,2]
[352752841,1739292644585,-272.1,0.00016438,2]
[352752842,1739292644594,-500.0,0.00016438,2]
[352752843,1739292644603,-3453.19,0.00016438,2]
[352752844,1739292644611,-1296.08,0.00016438,2]
[352752845,1739292644620,-500.0,0.00016438,2]
[352752846,1739292644629,-500.0,0.00016438,2]
[352752847,1739292644638,-1077.77,0.00016438,2]
[352752848,1739292644647,-903.8,0.00016438,2]
[352752849,1739292644656,-1620.87,0.00016438,2]
[352752850,1739292644665,-602.42403858,0.00016438,2]
[352752851,1739292644674,-500.0,0.00016438,2]
[352752852,1739292644683,-500.0,0.00016438,2]
[352752853,1739292644692,-622.06,0.00016438,2]
[352752854,1739292644701,-1360.37,0.00016438,2]
[352752855,1739292644711,-871.16,0.00016438,2]
[352752856,1739292644720,-500.0,0.00016438,2]
[352752857,1739292644731,-500.0,0.00016438,2]
[352752858,1739292644741,-500.0,0.00016438,2]
[352752859,1739292644751,-500.0,0.00016438,2]
[352752860,1739292644761,-1044.51,0.00016438,2]
[352752861,1739292644772,-500.0,0.00016438,2]
[352752862,1739292644782,-1892.93,0.00016438,2]
[352752863,1739292644791,-1187.32,0.00016438,2]
[352752864,1739292644800,-500.0,0.00016438,2]
[352752865,1739292644809,-1128.96,0.00016438,2]
[352752866,1739292644819,-500.0,0.00016438,2]
[352752867,1739292644827,-664.21,0.00016438,2]
[352752868,1739292644837,-1085.95,0.00016438,2]
[352752869,1739292644846,-500.0,0.00016438,2]
[352752870,1739292644856,-500.0,0.00016438,2]
[352752871,1739292644867,-831.29,0.00016438,2]
[352752872,1739292644876,-500.0,0.00016438,2]
[352752873,1739292644885,-502.13396927,0.00016438,2]
[352752874,1739292644895,-1315.41,0.00016438,2]
[352752875,1739292644904,-500.0,0.00016438,2]
[352752876,1739292644914,-1449.55,0.00016438,2]
[352752877,1739292644923,-500.0,0.00016438,2]
[352752878,1739292644932,-1736.09,0.00016438,2]
[352752879,1739292644941,-792.28,0.00016438,2]
[352752880,1739292644951,-1153.98,0.00016438,2]
[352752881,1739292644960,-500.0,0.00016438,2]
[352752882,1739292644970,-503.07938446,0.00016438,2]
[352752883,1739292644979,-500.0,0.00016438,2]
[352752884,1739292644988,-500.0,0.00016438,2]
[352752885,1739292644998,-1628.97,0.00016438,2]
[352752886,1739292645008,-1363.01,0.00016438,2]
[352752887,1739292645018,-2696.96,0.00016438,2]
[352752888,1739292645027,-500.0,0.00016438,2]
[352752889,1739292645037,-1143.92,0.00016438,2]
[352752890,1739292645046,-500.0,0.00016438,2]
[352752891,1739292645056,-628.01,0.00016438,2]
[352752892,1739292645065,-500.0,0.00016438,2]
[352752893,1739292645075,-1164.3,0.00016438,2]
[352752894,1739292645085,-223.11250025,0.00016438,2]
[352752895,1739292645095,-500.0,0.00016438,2]
[352752896,1739292645104,-500.0,0.00016438,2]
[352752897,1739292645114,-1186.05,0.00016438,2]
[352752898,1739292645123,-347.9,0.00016438,2]
[352752899,1739292645132,-1316.05,0.00016438,2]
[352752900,1739292645142,-500.0,0.00016438,2]
[352752901,1739292645151,-500.0,0.00016438,2]
[352752902,1739292645161,-500.0,0.00016438,2]
[352752903,1739292645171,-507.5,0.00016438,2]
[352752904,1739292645180,-500.0,0.00016438,2]
[352752905,1739292645189,-1204.14,0.00016438,2]
[352752906,1739292645199,-500.0,0.00016438,2]
[352752907,1739292645207,-500.0,0.00016438,2]
[352752908,1739292645217,-2709.34,0.00016438,2]
[352752909,1739292645226,-500.0,0.00016438,2]
[352752910,1739292645238,-2432.62,0.00016438,2]
[352752911,1739292645248,-1383.14,0.00016438,2]
[352752912,1739292645258,-500.0,0.00016438,2]
[352752913,1739292645268,-1113.99,0.00016438,2]
[352752914,1739292645277,-500.0,0.00016438,2]
[352752915,1739292645286,-516.51,0.00016438,2]
[352752916,1739292645296,-770.35,0.00016438,2]
[352752917,1739292645306,-500.0,0.00016438,2]
[352752918,1739292645316,-3406.84,0.00016438,2]
[352752919,1739292645326,-1152.94,0.00016438,2]
[352752920,1739292645334,-500.0,0.00016438,2]
[352752921,1739292645344,-1081.2,0.00016438,2]
[352752922,1739292645353,-694.27,0.00016438,2]
[352752923,1739292645363,-2107.97,0.00016438,2]
[352752924,1739292645373,-500.0,0.00016438,2]
[352752925,1739292645383,-1266.65,0.00016438,2]
[352752926,1739292645392,-500.0,0.00016438,2]
[352752927,1739292645402,-500.0,0.00016438,2]
[352752928,1739292645411,-517.54,0.00016438,2]
[352752929,1739292645421,-564.39179905,0.00016438,2]
[352752930,1739292645430,-1409.01,0.00016438,2]
[352752931,1739292645439,-760.33,0.00016438,2]
[352752932,1739292645450,-1622.42,0.00016438,2]
[352752933,1739292645459,-908.49,0.00016438,2]
[352752934,1739292645468,-500.0,0.00016438,2]
[352752935,1739292645478,-500.0,0.00016438,2]
[352752936,1739292645489,-1394.87,0.00016438,2]
[352752937,1739292645498,-500.0,0.00016438,2]
[352752938,1739292645507,-881.37,0.00016438,2]
[352752939,1739292645516,-1146.54,0.00016438,2]
[352752940,1739292645525,-2904.03,0.00016438,2]
[352752941,1739292645535,-500.0,0.00016438,2]
[352752942,1739292645544,-500.0,0.00016438,2]
[352752943,1739292645554,-581.55,0.00016438,2]
[352752944,1739292645563,-500.0,0.00016438,2]
[352752945,1739292645572,-1246.46,0.00016438,2]
[352752946,1739292645582,-315.4,0.00016438,2]
[352752947,1739292645591,-500.0,0.00016438,2]
[352752948,1739292645600,-156.12166684,0.00016438,2]
[352752949,1739292645610,-963.63,0.00016438,2]
[352752950,1739292645619,-500.0,0.00016438,2]
[352752951,1739292645628,-500.0,0.00016438,2]
[352752952,1739292645638,-500.0,0.00016438,2]
[352752953,1739292645647,-500.0,0.00016438,2]
[352752954,1739292645657,-500.0,0.00016438,2]
[352752955,1739292645666,-500.0,0.00016438,2]
[352752956,1739292645676,-1035.86,0.00016438,2]
[352752957,1739292645686,-1512.18,0.00016438,2]
[352752958,1739292645695,-1186.79,0.00016438,2]
[352752959,1739292645705,-500.0,0.00016438,2]
[352752960,1739292645716,-718.14,0.00016438,2]
[352752961,1739292645726,-397.82,0.00016438,2]
[352752962,1739292645737,-500.0,0.00016438,2]
[352752963,1739292645746,-500.0,0.00016438,2]
[352752964,1739292645756,-500.0,0.00016438,2]
[352752965,1739292645765,-500.0,0.00016438,2]
[352752966,1739292645774,-500.0,0.00016438,2]
[352752967,1739292645784,-500.0,0.00016438,2]
[352752968,1739292645793,-1350.44,0.00016438,2]
[352752969,1739292645802,-500.0,0.00016438,2]
[352752970,1739292645812,-1320.12,0.00016438,2]
[352752971,1739292645822,-500.0,0.00016438,2]
[352752972,1739292645832,-500.0,0.00016438,2]
[352752973,1739292645841,-668.38,0.00016438,2]
[352752974,1739292645850,-500.0,0.00016438,2]
[352752975,1739292645864,-500.0,0.00016438,2]
[352752976,1739292645874,-500.0,0.00016438,2]
[352752977,1739292645884,-400.0709434,0.00016438,2]
[352752978,1739292645895,-862.44,0.00016438,2]
[352752979,1739292645906,-1589.93,0.00016438,2]
[352752980,1739292645915,-985.84,0.00016438,2]
[352752981,1739292645925,-1153.41,0.00016438,2]
[352752982,1739292645934,-1534.98,0.00016438,2]
[352752983,1739292645943,-500.0,0.00016438,2]
[352752984,1739292645953,-500.0,0.00016438,2]
[352752985,1739292645963,-1581.96,0.00016438,2]
[352752986,1739292645972,-1598.66,0.00016438,2]
[352752987,1739292645983,-500.0,0.00016438,2]
[352752988,1739292645994,-500.0,0.00016438,2]
[352752989,1739292646005,-761.15,0.00016438,2]
[352752990,1739292646015,-500.0,0.00016438,2]
[352752991,1739292646025,-500.0,0.00016438,2]
[352752992,1739292646035,-737.13,0.00016438,2]
[352752993,1739292646044,-1270.11,0.00016438,2]
[352752994,1739292646054,-500.0,0.00016438,2]
[352752995,1739292646063,-583.47,0.00016438,2]
[352752996,1739292646073,-992.82,0.00016438,2]
[352752997,1739292646083,-500.0,0.00016438,2]
[352752998,1739292646093,-500.0,0.00016438,2]
[352752999,1739292646102,-500.0,0.00016438,2]
[352753000,1739292646112,-1121.5,0.00016438,2]
[352753001,1739292646122,-500.0,0.00016438,2]
[352753002,1739292646131,-824.99,0.00016438,2]
[352753003,1739292646141,-500.0,0.00016438,2]
[352753004,1739292646151,-1979.99,0.00016438,2]
[352753005,1739292646161,-500.0,0.00016438,2]
[352753006,1739292646171,-1201.69,0.00016438,2]
[352753007,1739292646181,-500.0,0.00016438,2]
[352753008,1739292646190,-500.0,0.00016438,2]
[352753009,1739292646199,-500.0,0.00016438,2]
[352753010,1739292646209,-635.61,0.00016438,2]
[352753011,1739292646218,-812.69,0.00016438,2]
[352753012,1739292646228,-500.0,0.00016438,2]
[352753013,1739292646240,-504.9969709,0.00016438,2]
[352753014,1739292646249,-500.0,0.00016438,2]
[352753015,1739292646259,-500.0,0.00016438,2]
[352753016,1739292646268,-1168.66,0.00016438,2]
[352753017,1739292646278,-1000.0,0.00016438,2]
[352753018,1739292646287,-2251.11,0.00016438,2]
[352753019,1739292646296,-635.05,0.00016438,2]
[352753020,1739292646306,-92528.16114062,0.00016438,2]
[352753021,1739292646315,-150.0,0.00016439,2]
[352753022,1739292646325,-500.0,0.00016439,2]
[352753023,1739292646334,-500.0,0.00016439,2]
[352753024,1739292646343,-500.0,0.00016439,2]
[352753025,1739292646352,-375.77978438,0.00016439,2]
[352753026,1739292646361,-500.0,0.00016439,2]
[352753027,1739292646370,-500.0,0.00016439,2]
[352753028,1739292646380,-500.0,0.00016439,2]
[352753029,1739292646389,-500.0,0.00016439,2]
[352753030,1739292646399,-397.34922511,0.00016439,2]
[352753031,1739292646409,-500.0,0.00016439,2]
[352753032,1739292646419,-481.6318694,0.00016439,2]
[352753033,1739292646428,-500.0,0.00016439,2]
[352753034,1739292646436,-500.0,0.00016439,2]
[352753035,1739292646446,-500.0,0.00016439,2]
[352753036,1739292646455,-500.0,0.00016439,2]
[352753037,1739292646465,-366.10121366,0.00016439,2]
[352753038,1739292646475,-500.0,0.00016439,2]
[352753039,1739292646485,-500.0,0.00016439,2]
[352753040,1739292646496,-500.0,0.00016439,2]
[352753041,1739292646505,-723.29023206,0.0001644,2]
[352753042,1739292646515,-500.0,0.00016441,2]
[352753043,1739292646525,-150.0,0.00016447,2]
[352753044,1739292646535,-150.0,0.00016457,2]
[352753045,1739292646545,-150.0,0.00016462,2]
[352753046,1739292646555,-150.0,0.00016484,2]
[352753047,1739292646565,-723.29023206,0.00016491,2]
[352753048,1739292646575,-305.085,0.000165,2]
[352753049,1739292646585,-305.085,0.000165,2]
[352753050,1739292646595,-151.0,0.000165,2]
[352753051,1739292646605,-151.0,0.000165,2]
[352753052,1739292646615,-2900.0,0.000165,6]
[352753053,1739292646625,-71808.64566558,0.000165,2]
[352753055,1739292646635,-617.67,0.00016511,2]
[352753056,1739292646645,-671.45,0.00016511,2]
[352753057,1739292646655,-929.9,0.00016511,2]
[352753059,1739292646665,-151.0,0.00016512,2]
[352753061,1739292646675,-1207.98846723,0.00016512,2]
[352753062,1739292646684,-150.0,0.00016515,2]
[352753063,1739292646694,-300.0,0.00016515,2]
[352753064,1739292646704,-151.27011009,0.00016522,2]
[352753065,1739292646713,-569.0,0.00016526,2]
[352753067,1739292646723,-150.0,0.00016526,2]
[352753068,1739292646733,-150.0,0.00016527,2]
[352753069,1739292646749,-150.0,0.00016536,2]
[352753070,1739292646760,-150.0,0.00016539,2]
[352753071,1739292646771,-189.31841004,0.0001654,2]
[352753072,1739292646781,-723.29023206,0.00016543,2]
[352753073,1739292646794,-150.0,0.00016567,2]
[352753075,1739292646805,-150.0,0.00016567,2]
[352753076,1739292646815,-311.172756,0.00016574,2]
[352753077,1739292646825,-311.172756,0.00016574,2]
[352753078,1739292646836,-299.197136,0.00016574,2]
[352753079,1739292646845,-299.197136,0.00016574,2]
[352753080,1739292646855,-272.659298,0.00016574,2]
[352753081,1739292646868,-272.659298,0.00016574,2]
[352753082,1739292646877,-436.66913609,0.00016574,2]
[352753083,1739292646889,-500.0,0.00016574,2]
[352753084,1739292646899,-500.0,0.00016574,2]
[352753085,1739292646909,-151.0,0.00016575,2]
[352753086,1739292646920,-151.0,0.00016575,2]
[352753087,1739292646931,-151.0,0.00016575,2]
[352753088,1739292646941,-151.0,0.00016575,2]
[352753089,1739292646951,-151.0,0.00016575,2]
[352753090,1739292646961,-151.0,0.00016575,2]
[352753091,1739292646971,-151.0,0.00016575,2]
[352753092,1739292646980,-151.0,0.00016575,2]
[352753093,1739292646994,-151.0,0.00016575,2]
[352753094,1739292647004,-151.0,0.00016575,2]
[352753095,1739292647014,-151.0,0.00016575,2]
[352753096,1739292647024,-151.0,0.00016575,2]
[352753097,1739292647034,-151.0,0.00016575,2]
[352753098,1739292647043,-311.172756,0.00016575,2]
[352753099,1739292647053,-311.172756,0.00016575,2]
[352753100,1739292647063,-311.172756,0.00016575,2]
[352753101,1739292647073,-311.172756,0.00016575,2]
[352753102,1739292647083,-311.172756,0.00016575,2]
[352753103,1739292647092,-311.172756,0.00016575,2]
[352753104,1739292647102,-311.172756,0.00016575,2]
[352753105,1739292647112,-311.172756,0.00016575,2]
[352753106,1739292647122,-299.197136,0.00016575,2]
[352753107,1739292647132,-299.197136,0.00016575,2]
[352753108,1739292647141,-299.197136,0.00016575,2]
[352753109,1739292647153,-299.197136,0.00016575,2]
[352753110,1739292647163,-299.197136,0.00016575,2]
[352753111,1739292647173,-299.197136,0.00016575,2]
[352753112,1739292647183,-299.197136,0.00016575,2]
[352753113,1739292647193,-299.197136,0.00016575,2]
[352753114,1739292647204,-305.085,0.00016575,2]
[352753115,1739292647213,-305.085,0.00016575,2]
[352753116,1739292647223,-305.085,0.00016575,2]
[352753117,1739292647232,-305.085,0.00016575,2]
[352753118,1739292647243,-305.085,0.00016575,2]
[352753119,1739292647253,-305.085,0.00016575,2]
[352753120,1739292647264,-305.085,0.00016575,2]
[352753121,1739292647274,-305.085,0.00016575,2]
[352753122,1739292647283,-305.085,0.00016575,2]
[352753123,1739292647293,-305.085,0.00016575,2]
[352753124,1739292647302,-305.085,0.00016575,2]
[352753125,1739292647311,-305.085,0.00016575,2]
[352753126,1739292647321,-151.0,0.00016575,2]
[352753127,1739292647331,-151.0,0.00016575,2]
[352753128,1739292647340,-151.0,0.00016575,2]
[352753129,1739292647351,-151.0,0.00016575,2]
[352753130,1739292647360,-151.0,0.00016575,2]
[352753131,1739292647370,-151.0,0.00016575,2]
[352753132,1739292647380,-272.659298,0.00016575,2]
[352753133,1739292647390,-272.659298,0.00016575,2]
[352753134,1739292647401,-272.659298,0.00016575,2]
[352753135,1739292647410,-272.659298,0.00016575,2]
[352753136,1739292647421,-151.0,0.00016575,2]
[352753137,1739292647431,-290.615345,0.00016575,2]
[352753138,1739292647440,-272.659298,0.00016575,2]
[352753139,1739292647449,-272.659298,0.00016575,2]
[352753140,1739292647458,-272.659298,0.00016575,2]
[352753141,1739292647467,-272.659298,0.00016575,2]
[352753142,1739292647476,-287.26715094,0.00016575,2]
[352753143,1739292647485,-1043.727911,0.00016575,2]
[352753144,1739292647497,-1232.861141,0.00016575,2]